[Event "Elitserien 2019/2020, round 1-3"]
[Site "Uppsala University, Gamla torget, Uppsala, Sweden"]
[Date "2019.10.20"]
[Round "3.4"]
[White "Andersson, Tommy"]
[Black "Antonsen, Mikkel"]
[Result "1/2-1/2"]
[TimeControl "90 minutes for 40 moves + 30 minutes for the rest of the game + 30 seconds per move from move one."]
[WhiteTitle "IM"]
[BlackTitle "IM"]
[WhiteFideId "1703803"]
[BlackFideId "1401378"]
[WhiteElo "2391"]
[BlackElo "2388"]

1. d4 {[%clk 01:30:57]} {[%emt 00:00:03]} d5 {[%clk 01:30:51]} {[%emt
00:00:09]} 2. c4 {[%clk 01:31:16]} {[%emt 00:00:10]} e6 {[%clk 01:31:18]}
{[%emt 00:00:04]} 3. Nc3 {[%clk 01:31:21]} {[%emt 00:00:25]} Nf6 {[%clk
01:31:43]} {[%emt 00:00:04]} 4. Nf3 {[%clk 01:31:30]} {[%emt 00:00:21]} c5
{[%clk 01:32:07]} {[%emt 00:00:06]} 5. e3 {[%clk 01:30:10]} {[%emt 00:01:51]}
dxc4 {[%clk 01:32:10]} {[%emt 00:00:27]} 6. Bxc4 {[%clk 01:30:04]} {[%emt
00:00:36]} a6 {[%clk 01:32:38]} {[%emt 00:00:03]} 7. O-O {[%clk 01:26:55]}
{[%emt 00:03:38]} b5 {[%clk 01:32:53]} {[%emt 00:00:15]} 8. Bb3 {[%clk
01:26:29]} {[%emt 00:00:55]} Bb7 {[%clk 01:31:27]} {[%emt 00:01:56]} 9. Qe2
{[%clk 01:25:05]} {[%emt 00:01:54]} Nbd7 {[%clk 01:30:50]} {[%emt 00:01:08]} 10.
Rd1 {[%clk 01:23:19]} {[%emt 00:02:15]} Qc7 {[%clk 01:23:21]} {[%emt 00:07:59]}
11. e4 {[%clk 01:08:48]} {[%emt 00:15:01]} cxd4 {[%clk 01:19:26]} {[%emt
00:04:26]} 12. Nxd4 {[%clk 01:04:37]} {[%emt 00:04:40]} Bc5 {[%clk 01:18:29]}
{[%emt 00:01:27]} 13. Be3 {[%clk 00:57:09]} {[%emt 00:07:58]} O-O {[%clk
01:17:25]} {[%emt 00:01:35]} 14. Rac1 {[%clk 00:48:59]} {[%emt 00:08:39]} Qb6
{[%clk 01:12:30]} {[%emt 00:05:26]} 15. f3 {[%clk 00:42:11]} {[%emt 00:07:18]}
Rfd8 {[%clk 00:50:57]} {[%emt 00:22:01]} 1/2-1/2

[Event "Elitserien 2019/2020, round 1-3"]
[Site "Uppsala University, Gamla torget, Uppsala, Sweden"]
[Date "2019.10.20"]
[Round "3.5"]
[White "Ahlander, Bjorn"]
[Black "Larsson, Victor"]
[Result "1-0"]
[TimeControl "90 minutes for 40 moves + 30 minutes for the rest of the game + 30 seconds per move from move one."]
[WhiteTitle "IM"]
[WhiteFideId "1700251"]
[BlackFideId "1707019"]
[WhiteElo "2395"]
[BlackElo "2201"]

1. d4 {[%clk 01:30:56]} {[%emt 00:00:03]} d5 {[%clk 01:23:04]} {[%emt
00:07:56]} 2. c4 {[%clk 01:31:19]} {[%emt 00:00:07]} e6 {[%clk 01:23:33]}
{[%emt 00:00:02]} 3. Nc3 {[%clk 01:31:31]} {[%emt 00:00:17]} Be7 {[%clk
01:24:01]} {[%emt 00:00:03]} 4. Nf3 {[%clk 01:31:49]} {[%emt 00:00:12]} Nf6
{[%clk 01:24:28]} {[%emt 00:00:03]} 5. g3 {[%clk 01:32:07]} {[%emt 00:00:12]}
O-O {[%clk 01:24:44]} {[%emt 00:00:14]} 6. Bg2 {[%clk 01:32:25]} {[%emt
00:00:11]} dxc4 {[%clk 01:11:11]} {[%emt 00:14:03]} 7. Ne5 {[%clk 01:32:45]}
{[%emt 00:00:10]} Nc6 {[%clk 00:57:54]} {[%emt 00:13:48]} 8. Bxc6 {[%clk
01:32:53]} {[%emt 00:00:22]} bxc6 {[%clk 00:58:23]} {[%emt 00:00:01]} 9. Nxc6
{[%clk 01:33:12]} {[%emt 00:00:10]} Qe8 {[%clk 00:58:51]} {[%emt 00:00:03]} 10.
Nxe7+ {[%clk 01:33:32]} {[%emt 00:00:10]} Qxe7 {[%clk 00:59:20]} {[%emt
00:00:01]} 11. Qa4 {[%clk 01:33:48]} {[%emt 00:00:13]} c5 {[%clk 00:54:06]}
{[%emt 00:05:46]} 12. dxc5 {[%clk 01:34:09]} {[%emt 00:00:08]} Qxc5 {[%clk
00:53:40]} {[%emt 00:00:55]} 13. Be3 {[%clk 01:34:35]} {[%emt 00:00:04]} Qh5
{[%clk 00:54:09]} {[%emt 00:00:02]} 14. O-O-O {[%clk 01:26:40]} {[%emt
00:08:24]} Nd5 {[%clk 00:41:20]} {[%emt 00:13:18]} 15. Qa5 {[%clk 01:24:02]}
{[%emt 00:03:08]} Bb7 {[%clk 00:35:08]} {[%emt 00:06:43]} 16. f3 {[%clk
01:24:29]} {[%emt 00:00:03]} Qg6 {[%clk 00:28:14]} {[%emt 00:07:25]} 17. Bd4
{[%clk 01:23:33]} {[%emt 00:01:25]} Rfc8 {[%clk 00:18:11]} {[%emt 00:10:34]} 18.
e4 {[%clk 01:20:58]} {[%emt 00:03:04]} Nb6 {[%clk 00:14:04]} {[%emt 00:04:38]}
19. Bxb6 {[%clk 01:16:16]} {[%emt 00:05:11]} axb6 {[%clk 00:14:33]} {[%emt
00:00:01]} 20. Qxb6 {[%clk 01:16:33]} {[%emt 00:00:13]} Bc6 {[%clk 00:13:57]}
{[%emt 00:01:07]} 21. Rd6 {[%clk 01:13:27]} {[%emt 00:03:35]} Be8 {[%clk
00:12:52]} {[%emt 00:01:36]} 22. Rhd1 {[%clk 01:13:38]} {[%emt 00:00:18]} Qh5
{[%clk 00:12:08]} {[%emt 00:01:15]} 23. Qf2 {[%clk 01:12:17]} {[%emt 00:01:50]}
Qa5 {[%clk 00:12:01]} {[%emt 00:00:38]} 24. R1d2 {[%clk 01:07:45]} {[%emt
00:05:01]} h6 {[%clk 00:12:14]} {[%emt 00:00:18]} 25. h4 {[%clk 01:03:25]}
{[%emt 00:04:49]} Rab8 {[%clk 00:12:02]} {[%emt 00:00:42]} 26. g4 {[%clk
01:02:30]} {[%emt 00:01:25]} Ba4 {[%clk 00:12:28]} {[%emt 00:00:05]} 27. Qd4
{[%clk 01:00:46]} {[%emt 00:02:13]} Kh7 {[%clk 00:11:36]} {[%emt 00:01:23]} 28.
f4 {[%clk 00:59:44]} {[%emt 00:01:31]} Bb3 {[%clk 00:09:49]} {[%emt 00:02:17]}
29. Rd7 {[%clk 00:59:18]} {[%emt 00:00:55]} Kg8 {[%clk 00:04:10]} {[%emt
00:06:11]} 30. Qa7 {[%clk 00:57:33]} {[%emt 00:02:13]} 1-0

[Event "Elitserien 2019/2020, round 1-3"]
[Site "Uppsala University, Gamla torget, Uppsala, Sweden"]
[Date "2019.10.20"]
[Round "3.6"]
[White "Persson, Mats"]
[Black "Jogstad, Martin"]
[Result "1/2-1/2"]
[TimeControl "90 minutes for 40 moves + 30 minutes for the rest of the game + 30 seconds per move from move one."]
[WhiteTitle "FM"]
[BlackTitle "FM"]
[WhiteFideId "1708333"]
[BlackFideId "1715364"]
[WhiteElo "2283"]
[BlackElo "2322"]

1. e4 {[%clk 01:30:58]} {[%emt 00:00:01]} c5 {[%clk 01:30:41]} {[%emt
00:00:19]} 2. Nf3 {[%clk 01:31:26]} {[%emt 00:00:02]} e6 {[%clk 01:31:03]}
{[%emt 00:00:09]} 3. Nc3 {[%clk 01:30:11]} {[%emt 00:01:46]} Nc6 {[%clk
01:30:59]} {[%emt 00:00:32]} 4. g3 {[%clk 01:30:30]} {[%emt 00:00:11]} Nf6
{[%clk 01:30:40]} {[%emt 00:00:49]} 5. Bg2 {[%clk 01:30:44]} {[%emt 00:00:17]}
d5 {[%clk 01:30:51]} {[%emt 00:00:19]} 6. exd5 {[%clk 01:30:51]} {[%emt
00:00:23]} Nxd5 {[%clk 01:31:14]} {[%emt 00:00:07]} 7. Nxd5 {[%clk 01:30:52]}
{[%emt 00:00:29]} Qxd5 {[%clk 01:31:13]} {[%emt 00:00:30]} 8. O-O {[%clk
01:31:17]} {[%emt 00:00:05]} Be7 {[%clk 01:27:44]} {[%emt 00:03:59]} 9. Re1
{[%clk 01:26:11]} {[%emt 00:05:37]} Qd8 {[%clk 01:13:42]} {[%emt 00:14:31]} 10.
d3 {[%clk 01:26:33]} {[%emt 00:00:08]} O-O {[%clk 01:12:59]} {[%emt 00:01:12]}
11. Nd2 {[%clk 01:21:12]} {[%emt 00:05:53]} Bd7 {[%clk 01:09:38]} {[%emt
00:03:50]} 12. Nc4 {[%clk 01:13:04]} {[%emt 00:08:39]} Rc8 {[%clk 00:59:02]}
{[%emt 00:11:06]} 13. a4 {[%clk 01:13:07]} {[%emt 00:00:27]} b6 {[%clk
00:57:04]} {[%emt 00:02:28]} 14. Bf4 {[%clk 01:05:10]} {[%emt 00:08:25]} Be8
{[%clk 00:55:38]} {[%emt 00:01:56]} 15. c3 {[%clk 00:59:35]} {[%emt 00:06:07]}
a6 {[%clk 00:37:44]} {[%emt 00:18:24]} 16. Qc2 {[%clk 00:31:19]} {[%emt
00:28:46]} b5 {[%clk 00:36:10]} {[%emt 00:02:04]} 17. axb5 {[%clk 00:30:57]}
{[%emt 00:00:52]} axb5 {[%clk 00:36:30]} {[%emt 00:00:10]} 18. Ne5 {[%clk
00:30:43]} {[%emt 00:00:45]} Nxe5 {[%clk 00:31:53]} {[%emt 00:05:06]} 19. Bxe5
{[%clk 00:29:46]} {[%emt 00:01:26]} Bc6 {[%clk 00:31:53]} {[%emt 00:00:30]} 20.
Be4 {[%clk 00:28:23]} {[%emt 00:01:54]} Bxe4 {[%clk 00:22:36]} {[%emt
00:09:46]} 21. dxe4 {[%clk 00:28:15]} {[%emt 00:00:38]} Qb6 {[%clk 00:22:15]}
{[%emt 00:00:50]} 22. Red1 {[%clk 00:27:49]} {[%emt 00:00:58]} Rfd8 {[%clk
00:20:57]} {[%emt 00:01:47]} 23. Rxd8+ {[%clk 00:27:46]} {[%emt 00:00:34]} Rxd8
{[%clk 00:19:52]} {[%emt 00:01:34]} 24. Rd1 {[%clk 00:28:08]} {[%emt 00:00:10]}
h6 {[%clk 00:14:26]} {[%emt 00:05:54]} 25. Rxd8+ {[%clk 00:27:47]} {[%emt
00:00:52]} Qxd8 {[%clk 00:14:37]} {[%emt 00:00:19]} 26. c4 {[%clk 00:23:43]}
{[%emt 00:04:33]} b4 {[%clk 00:14:33]} {[%emt 00:00:34]} 27. b3 {[%clk
00:19:21]} {[%emt 00:04:53]} Bf6 {[%clk 00:14:02]} {[%emt 00:01:00]} 28. Bxf6
{[%clk 00:17:13]} {[%emt 00:02:39]} Qxf6 {[%clk 00:14:29]} {[%emt 00:00:02]} 29.
Kg2 {[%clk 00:17:05]} {[%emt 00:00:38]} g5 {[%clk 00:13:53]} {[%emt 00:01:06]}
30. Qe2 {[%clk 00:13:57]} {[%emt 00:03:39]} Qd4 {[%clk 00:12:48]} {[%emt
00:01:33]} 31. Qf3 {[%clk 00:12:53]} {[%emt 00:01:36]} Kg7 {[%clk 00:13:02]}
{[%emt 00:00:15]} 32. h3 {[%clk 00:12:31]} {[%emt 00:00:52]} Kg6 {[%clk
00:11:56]} {[%emt 00:01:35]} 33. h4 {[%clk 00:10:51]} {[%emt 00:02:12]} Qc3
{[%clk 00:10:30]} {[%emt 00:01:54]} 34. hxg5 {[%clk 00:08:06]} {[%emt
00:03:16]} hxg5 {[%clk 00:10:48]} {[%emt 00:00:12]} 35. Qd1 {[%clk 00:07:35]}
{[%emt 00:01:01]} Qe5 {[%clk 00:10:23]} {[%emt 00:00:53]} 36. Qf3 {[%clk
00:07:42]} {[%emt 00:00:27]} Qd4 {[%clk 00:10:14]} {[%emt 00:00:38]} 37. Qe2
{[%clk 00:07:00]} {[%emt 00:01:12]} Kf6 {[%clk 00:09:26]} {[%emt 00:01:17]} 38.
f4 {[%clk 00:06:06]} {[%emt 00:01:25]} gxf4 {[%clk 00:06:48]} {[%emt 00:03:07]}
39. gxf4 {[%clk 00:06:29]} {[%emt 00:00:08]} e5 {[%clk 00:06:41]} {[%emt
00:00:37]} 40. Qf3 {[%clk 00:00:49]} {[%emt 00:06:10]} Qd2+ {[%clk 00:02:07]}
{[%emt 00:05:03]} 41. Kg3 {[%clk 00:28:46]} {[%emt 00:02:34]} Qe1+ {[%clk
00:29:53]} {[%emt 00:02:43]} 42. Kg2 {[%clk 00:26:39]} {[%emt 00:02:38]} Ke6
{[%clk 00:21:31]} {[%emt 00:08:51]} 43. Qd3 {[%clk 00:20:09]} {[%emt 00:07:00]}
exf4 {[%clk 00:14:47]} {[%emt 00:07:14]} 44. Qd5+ {[%clk 00:20:30]} {[%emt
00:00:10]} Kf6 {[%emt 00:00:08]} 45. Qf5+ {[%clk 00:20:38]} {[%emt 00:00:22]}
Kg7 {[%clk 00:15:32]} {[%emt 00:00:05]} 46. Qg5+ {[%clk 00:20:52]} {[%emt
00:00:17]} Kh7 {[%clk 00:15:39]} {[%emt 00:00:23]} 47. Qh5+ {[%clk 00:21:07]}
{[%emt 00:00:16]} Kg7 {[%clk 00:16:02]} {[%emt 00:00:07]} 48. Qg5+ {[%clk
00:21:30]} {[%emt 00:00:07]} Kh7 {[%clk 00:16:24]} {[%emt 00:00:07]} 49. Qh5+
{[%clk 00:21:53]} {[%emt 00:00:07]} Kg7 {[%clk 00:16:50]} {[%emt 00:00:04]} 50.
Qg5+ {[%clk 00:22:17]} {[%emt 00:00:05]} 1/2-1/2

[Event "Elitserien 2019/2020, round 1-3"]
[Site "Uppsala University, Gamla torget, Uppsala, Sweden"]
[Date "2019.10.20"]
[Round "3.7"]
[White "Mauritsson, Sebastian"]
[Black "Andersson, Bjorn"]
[Result "1-0"]
[TimeControl "90 minutes for 40 moves + 30 minutes for the rest of the game + 30 seconds per move from move one."]
[WhiteTitle "FM"]
[BlackTitle "FM"]
[WhiteFideId "1707892"]
[BlackFideId "1702114"]
[WhiteElo "2339"]
[BlackElo "2162"]

1. e4 {[%clk 01:30:54]} {[%emt 00:00:05]} c5 {[%clk 01:30:56]} {[%emt
00:00:05]} 2. Nf3 {[%clk 01:30:55]} {[%emt 00:00:29]} Nc6 {[%clk 01:31:19]}
{[%emt 00:00:05]} 3. d4 {[%clk 01:31:19]} {[%emt 00:00:07]} cxd4 {[%clk
01:31:40]} {[%emt 00:00:09]} 4. Nxd4 {[%clk 01:31:43]} {[%emt 00:00:06]} Nf6
{[%clk 01:32:03]} {[%emt 00:00:07]} 5. Nc3 {[%clk 01:32:09]} {[%emt 00:00:05]}
e5 {[%clk 01:32:23]} {[%emt 00:00:09]} 6. Ndb5 {[%clk 01:32:24]} {[%emt
00:00:15]} d6 {[%clk 01:32:45]} {[%emt 00:00:08]} 7. Bg5 {[%clk 01:32:46]}
{[%emt 00:00:09]} a6 {[%clk 01:33:10]} {[%emt 00:00:04]} 8. Na3 {[%clk
01:33:00]} {[%emt 00:00:16]} b5 {[%clk 01:33:18]} {[%emt 00:00:22]} 9. Bxf6
{[%clk 01:33:23]} {[%emt 00:00:08]} gxf6 {[%clk 01:33:36]} {[%emt 00:00:12]} 10.
Nd5 {[%clk 01:33:48]} {[%emt 00:00:05]} Bg7 {[%clk 01:33:42]} {[%emt 00:00:24]}
11. c3 {[%clk 01:34:06]} {[%emt 00:00:12]} Ne7 {[%clk 01:34:03]} {[%emt
00:00:08]} 12. Nxe7 {[%clk 01:33:49]} {[%emt 00:00:47]} Qxe7 {[%clk 01:34:23]}
{[%emt 00:00:10]} 13. Nc2 {[%clk 01:34:09]} {[%emt 00:00:11]} O-O {[%clk
01:27:07]} {[%emt 00:07:45]} 14. Ne3 {[%clk 01:24:54]} {[%emt 00:09:46]} Qb7
{[%clk 01:27:09]} {[%emt 00:00:27]} 15. Qf3 {[%clk 01:11:03]} {[%emt 00:14:21]}
Be6 {[%clk 01:21:45]} {[%emt 00:05:54]} 16. Bd3 {[%clk 01:05:13]} {[%emt
00:06:20]} Rfd8 {[%clk 01:16:43]} {[%emt 00:05:32]} 17. O-O {[%clk 01:00:39]}
{[%emt 00:05:04]} Rac8 {[%clk 01:11:45]} {[%emt 00:05:27]} 18. Rfd1 {[%clk
00:56:15]} {[%emt 00:04:55]} Rc5 {[%clk 00:58:57]} {[%emt 00:13:17]} 19. h3
{[%clk 00:42:12]} {[%emt 00:14:35]} Kf8 {[%clk 00:57:35]} {[%emt 00:01:51]} 20.
Bc2 {[%clk 00:39:41]} {[%emt 00:03:01]} b4 {[%clk 00:57:05]} {[%emt 00:01:00]}
21. cxb4 {[%clk 00:38:25]} {[%emt 00:01:47]} Qxb4 {[%clk 00:57:00]} {[%emt
00:00:34]} 22. b3 {[%clk 00:37:39]} {[%emt 00:01:16]} Ke7 {[%clk 00:53:39]}
{[%emt 00:03:50]} 23. Bd3 {[%clk 00:35:04]} {[%emt 00:03:06]} Qb6 {[%clk
00:45:06]} {[%emt 00:09:02]} 24. Bc4 {[%clk 00:35:12]} {[%emt 00:00:23]} Bh6
{[%clk 00:45:12]} {[%emt 00:00:24]} 25. Nf5+ {[%clk 00:32:33]} {[%emt
00:03:08]} Bxf5 {[%clk 00:44:30]} {[%emt 00:01:12]} 26. Qxf5 {[%clk 00:33:01]}
{[%emt 00:00:03]} Bf4 {[%clk 00:25:01]} {[%emt 00:19:59]} 27. Rd3 {[%clk
00:20:03]} {[%emt 00:13:28]} Rg8 {[%clk 00:23:12]} {[%emt 00:02:19]} 28. Qxh7
{[%clk 00:18:10]} {[%emt 00:02:23]} Rxc4 {[%clk 00:23:37]} {[%emt 00:00:05]} 29.
bxc4 {[%clk 00:18:23]} {[%emt 00:00:17]} Qb8 {[%clk 00:17:36]} {[%emt
00:06:31]} 30. Rb3 {[%clk 00:16:18]} {[%emt 00:02:35]} 1-0

[Event "Elitserien 2019/2020, round 1-3"]
[Site "Uppsala University, Gamla torget, Uppsala, Sweden"]
[Date "2019.10.20"]
[Round "3.8"]
[White "Fraenkel, Mikael"]
[Black "Kucuksari, Kaan"]
[Result "0-1"]
[TimeControl "90 minutes for 40 moves + 30 minutes for the rest of the game + 30 seconds per move from move one."]
[BlackTitle "FM"]
[WhiteFideId "1706985"]
[BlackFideId "6380166"]
[WhiteElo "2040"]
[BlackElo "2319"]

1. e4 {[%clk 01:23:33]} {[%emt 00:07:26]} c5 {[%clk 01:30:56]} {[%emt
00:00:05]} 2. Nf3 {[%clk 01:23:36]} {[%emt 00:00:26]} e6 {[%clk 01:31:22]}
{[%emt 00:00:05]} 3. d3 {[%clk 01:23:52]} {[%emt 00:00:13]} d5 {[%clk
01:31:23]} {[%emt 00:00:28]} 4. Nbd2 {[%clk 01:23:08]} {[%emt 00:01:15]} Nc6
{[%clk 01:31:47]} {[%emt 00:00:07]} 5. g3 {[%clk 01:23:32]} {[%emt 00:00:06]}
g6 {[%clk 01:31:52]} {[%emt 00:00:25]} 6. Bg2 {[%clk 01:23:43]} {[%emt
00:00:18]} Bg7 {[%clk 01:32:10]} {[%emt 00:00:13]} 7. O-O {[%clk 01:24:01]}
{[%emt 00:00:11]} Nge7 {[%clk 01:32:34]} {[%emt 00:00:06]} 8. Re1 {[%clk
01:24:18]} {[%emt 00:00:13]} O-O {[%clk 01:32:57]} {[%emt 00:00:07]} 9. Qe2
{[%clk 01:22:19]} {[%emt 00:02:30]} b5 {[%clk 01:32:39]} {[%emt 00:00:48]} 10.
Nf1 {[%clk 01:21:54]} {[%emt 00:00:54]} b4 {[%clk 01:30:53]} {[%emt 00:02:17]}
11. h4 {[%clk 01:21:30]} {[%emt 00:00:54]} dxe4 {[%clk 01:20:59]} {[%emt
00:10:23]} 12. dxe4 {[%clk 01:21:44]} {[%emt 00:00:17]} e5 {[%clk 01:19:10]}
{[%emt 00:02:19]} 13. c3 {[%clk 01:15:16]} {[%emt 00:06:56]} a5 {[%clk
01:17:35]} {[%emt 00:02:07]} 14. Ne3 {[%clk 01:04:47]} {[%emt 00:10:58]} Ba6
{[%clk 01:13:09]} {[%emt 00:04:56]} 15. Nc4 {[%clk 01:00:09]} {[%emt 00:05:08]}
a4 {[%clk 01:13:09]} {[%emt 00:00:31]} 16. Bg5 {[%clk 00:30:01]} {[%emt
00:30:38]} Na5 {[%clk 00:51:45]} {[%emt 00:21:54]} 17. Nfd2 {[%clk 00:21:48]}
{[%emt 00:08:43]} a3 {[%clk 00:49:00]} {[%emt 00:03:15]} 18. b3 {[%clk
00:16:56]} {[%emt 00:05:21]} bxc3 {[%clk 00:37:06]} {[%emt 00:12:25]} 19. Nb1
{[%clk 00:16:28]} {[%emt 00:00:58]} f6 {[%clk 00:35:04]} {[%emt 00:02:32]} 20.
Be3 {[%clk 00:14:30]} {[%emt 00:02:28]} Nxc4 {[%clk 00:31:25]} {[%emt
00:04:09]} 21. bxc4 {[%clk 00:14:41]} {[%emt 00:00:19]} Qa5 {[%clk 00:28:14]}
{[%emt 00:03:40]} 22. Qc2 {[%clk 00:08:43]} {[%emt 00:06:28]} Bxc4 {[%clk
00:27:49]} {[%emt 00:00:56]} 23. Qxc3 {[%clk 00:08:04]} {[%emt 00:01:09]} Qxc3
{[%clk 00:25:33]} {[%emt 00:02:46]} 24. Nxc3 {[%clk 00:08:30]} {[%emt
00:00:03]} Rfc8 {[%clk 00:25:23]} {[%emt 00:00:39]} 25. Rec1 {[%clk 00:07:50]}
{[%emt 00:01:11]} Bf8 {[%clk 00:17:25]} {[%emt 00:08:28]} 26. Nd1 {[%clk
00:04:12]} {[%emt 00:04:09]} Be6 {[%clk 00:13:50]} {[%emt 00:04:03]} 27. Bxc5
{[%clk 00:03:49]} {[%emt 00:00:54]} Nc6 {[%clk 00:09:56]} {[%emt 00:04:24]} 28.
Bxf8 {[%clk 00:03:40]} {[%emt 00:00:40]} Kxf8 {[%clk 00:10:24]} {[%emt
00:00:02]} 29. Ne3 {[%clk 00:03:24]} {[%emt 00:00:45]} Nd4 {[%clk 00:07:49]}
{[%emt 00:03:04]} 30. Rxc8+ {[%clk 00:03:28]} {[%emt 00:00:28]} Rxc8 {[%clk
00:08:19]} {[%emt 00:00:01]} 31. Nd5 {[%clk 00:03:35]} {[%emt 00:00:22]} Bxd5
{[%clk 00:06:37]} {[%emt 00:02:12]} 32. exd5 {[%clk 00:04:04]} {[%emt
00:00:01]} Rc1+ {[%clk 00:05:27]} {[%emt 00:01:40]} 33. Rxc1 {[%clk 00:03:59]}
{[%emt 00:00:35]} Ne2+ {[%clk 00:05:56]} 34. Kf1 {[%clk 00:03:54]} {[%emt
00:00:36]} Nxc1 {[%clk 00:06:24]} {[%emt 00:00:01]} 35. d6 {[%clk 00:04:00]}
{[%emt 00:00:24]} Nxa2 {[%clk 00:06:50]} {[%emt 00:00:04]} 36. Bd5 {[%clk
00:01:07]} {[%emt 00:03:23]} Nb4 {[%clk 00:07:16]} {[%emt 00:00:03]} 37. Bc4
{[%clk 00:01:23]} {[%emt 00:00:15]} a2 {[%clk 00:07:42]} {[%emt 00:00:04]} 38.
Bxa2 {[%clk 00:01:51]} {[%emt 00:00:03]} Nxa2 {[%clk 00:08:07]} {[%emt
00:00:04]} 39. Ke2 {[%clk 00:02:13]} {[%emt 00:00:07]} Kf7 {[%clk 00:08:26]}
{[%emt 00:00:12]} 0-1